[Event "Early-Titled-Tuesday-Blitz-February-06-2024"]
[Site "Chess.com"]
[Date "2024.02.06"]
[Round "2"]
[White "LileKoridze"]
[Black "Chessdreamer2020"]
[Result "1-0"]
[WhiteElo "2372"]
[BlackElo "2543"]
[TimeControl "180+1"]
[EndTime "8:15:08 PST"]
[Termination "LileKoridze won by checkmate"]

1. d4 {[%clk 0:03:00.9]} 1... d6 {[%clk 0:02:59.1]} 2. c4 {[%clk 0:03:01]} 2...
e5 {[%clk 0:02:58.7]} 3. Nc3 {[%clk 0:03:00.6]} 3... exd4 {[%clk 0:02:57.6]} 4.
Qxd4 {[%clk 0:03:00.5]} 4... Nc6 {[%clk 0:02:58.5]} 5. Qd1 {[%clk 0:03:00.7]}
5... Nf6 {[%clk 0:02:58.6]} 6. e3 {[%clk 0:02:59.8]} 6... Be7 {[%clk 0:02:57.1]}
7. Nf3 {[%clk 0:02:59.9]} 7... O-O {[%clk 0:02:58]} 8. Bd3 {[%clk 0:02:57.3]}
8... Be6 {[%clk 0:02:56]} 9. b3 {[%clk 0:02:56.7]} 9... Ne5 {[%clk 0:02:53.3]}
10. Be2 {[%clk 0:02:55.5]} 10... c6 {[%clk 0:02:46.1]} 11. O-O {[%clk
0:02:54.6]} 11... Qc7 {[%clk 0:02:29]} 12. Bb2 {[%clk 0:02:53.8]} 12... Rad8
{[%clk 0:02:28.7]} 13. Qc2 {[%clk 0:02:53.1]} 13... Rfe8 {[%clk 0:02:17.6]} 14.
Rad1 {[%clk 0:02:51.7]} 14... Bf8 {[%clk 0:02:17.7]} 15. h3 {[%clk 0:02:45.2]}
15... Bc8 {[%clk 0:02:18]} 16. Nxe5 {[%clk 0:02:45]} 16... dxe5 {[%clk 0:02:18]}
17. Bf3 {[%clk 0:02:45.2]} 17... g6 {[%clk 0:02:06]} 18. Rxd8 {[%clk 0:02:39.1]}
18... Rxd8 {[%clk 0:02:06]} 19. Rd1 {[%clk 0:02:39.3]} 19... Bf5 {[%clk
0:02:04.8]} 20. e4 {[%clk 0:02:37.8]} 20... Rxd1+ {[%clk 0:02:04.5]} 21. Qxd1
{[%clk 0:02:37.7]} 21... Bc8 {[%clk 0:02:04.6]} 22. Ne2 {[%clk 0:02:35.4]} 22...
Nd7 {[%clk 0:02:04.3]} 23. Bg4 {[%clk 0:02:34.6]} 23... f6 {[%clk 0:02:02.3]}
24. f4 {[%clk 0:02:25.1]} 24... Bd6 {[%clk 0:01:59.6]} 25. f5 {[%clk 0:02:02.4]}
25... g5 {[%clk 0:01:57]} 26. a3 {[%clk 0:01:55.3]} 26... a5 {[%clk 0:01:56.7]}
27. Nc3 {[%clk 0:01:53.6]} 27... Bf8 {[%clk 0:01:51.6]} 28. Na4 {[%clk
0:01:49.9]} 28... Nc5 {[%clk 0:01:38.8]} 29. Nxc5 {[%clk 0:01:46.7]} 29... Bxc5+
{[%clk 0:01:39.7]} 30. Kh2 {[%clk 0:01:47.2]} 30... Qe7 {[%clk 0:01:39]} 31. Qc1
{[%clk 0:01:46.6]} 31... Qd6 {[%clk 0:01:38.8]} 32. Qc3 {[%clk 0:01:44.4]} 32...
b6 {[%clk 0:01:37.5]} 33. Qc2 {[%clk 0:01:43.5]} 33... Ba6 {[%clk 0:01:36.2]}
34. Bf3 {[%clk 0:01:40]} 34... Kf7 {[%clk 0:01:33.1]} 35. Qc1 {[%clk 0:01:38]}
35... Ke7 {[%clk 0:01:31.8]} 36. h4 {[%clk 0:01:37.7]} 36... h6 {[%clk
0:01:31.6]} 37. hxg5 {[%clk 0:01:37.6]} 37... hxg5 {[%clk 0:01:32.5]} 38. Kg3
{[%clk 0:01:36.8]} 38... Qd3 {[%clk 0:01:31.6]} 39. Qh1 {[%clk 0:01:35.8]} 39...
Qxb3 {[%clk 0:01:30.5]} 40. Qh7+ {[%clk 0:01:35.9]} 40... Kd6 {[%clk 0:01:30.9]}
41. Qh8 {[%clk 0:01:33.9]} 41... Qxb2 {[%clk 0:01:29.9]} 42. Qd8# {[%clk
0:01:33.2]} 1-0

[Event "Early-Titled-Tuesday-Blitz-February-06-2024"]
[Site "Chess.com"]
[Date "2024.02.06"]
[Round "2"]
[White "verrbaa"]
[Black "DarZay"]
[Result "1-0"]
[WhiteElo "2493"]
[BlackElo "2257"]
[TimeControl "180+1"]
[EndTime "8:15:08 PST"]
[Termination "verrbaa won by resignation"]

1. e4 {[%clk 0:03:00.9]} 1... e5 {[%clk 0:02:54.8]} 2. Nf3 {[%clk 0:03:00.5]}
2... Nc6 {[%clk 0:02:54.1]} 3. Bb5 {[%clk 0:03:00.4]} 3... a6 {[%clk 0:02:51.1]}
4. Ba4 {[%clk 0:03:00.1]} 4... Nge7 {[%clk 0:02:50]} 5. O-O {[%clk 0:02:53.3]}
5... g6 {[%clk 0:02:48.8]} 6. c3 {[%clk 0:02:33.6]} 6... Bg7 {[%clk 0:02:48.3]}
7. d4 {[%clk 0:02:33.8]} 7... exd4 {[%clk 0:02:47.3]} 8. cxd4 {[%clk 0:02:34.4]}
8... b5 {[%clk 0:02:47.4]} 9. Bb3 {[%clk 0:02:34.1]} 9... d5 {[%clk 0:02:44.8]}
10. Nc3 {[%clk 0:02:15.7]} 10... dxe4 {[%clk 0:02:34]} 11. Ng5 {[%clk
0:02:15.6]} 11... O-O {[%clk 0:02:31.4]} 12. d5 {[%clk 0:02:14.3]} 12... Nd4
{[%clk 0:02:29]} 13. Ngxe4 {[%clk 0:02:09.7]} 13... Nxb3 {[%clk 0:02:28.7]} 14.
axb3 {[%clk 0:02:10.6]} 14... Nf5 {[%clk 0:02:04]} 15. Bg5 {[%clk 0:01:59.8]}
15... Qe8 {[%clk 0:01:58.4]} 16. Re1 {[%clk 0:01:59.1]} 16... Qd7 {[%clk
0:01:52.8]} 17. Nf6+ {[%clk 0:01:56]} 17... Bxf6 {[%clk 0:01:51.9]} 18. Bxf6
{[%clk 0:01:56.9]} 18... Bb7 {[%clk 0:01:42.5]} 19. b4 {[%clk 0:01:32]} 19... a5
{[%clk 0:01:30.6]} 20. bxa5 {[%clk 0:01:09.7]} 20... b4 {[%clk 0:01:30.3]} 21.
a6 {[%clk 0:01:09.8]} 21... Bxa6 {[%clk 0:01:27.7]} 22. Ne4 {[%clk 0:01:09.1]}
22... Bc4 {[%clk 0:01:25.6]} 23. Be5 {[%clk 0:01:05.3]} 23... f6 {[%clk
0:01:14.9]} 24. Rxa8 {[%clk 0:01:03.9]} 1-0

[Event "Early-Titled-Tuesday-Blitz-February-06-2024"]
[Site "Chess.com"]
[Date "2024.02.06"]
[Round "2"]
[White "Bauman_Guy"]
[Black "MdChess1734"]
[Result "1-0"]
[WhiteElo "2847"]
[BlackElo "2390"]
[TimeControl "180+1"]
[EndTime "8:15:10 PST"]
[Termination "Bauman_Guy won on time"]

1. e4 {[%clk 0:03:00.9]} 1... c6 {[%clk 0:02:59.2]} 2. d4 {[%clk 0:03:00.7]}
2... d5 {[%clk 0:02:59.3]} 3. e5 {[%clk 0:03:01.2]} 3... Bf5 {[%clk 0:02:58.2]}
4. h4 {[%clk 0:03:00]} 4... h5 {[%clk 0:02:56.7]} 5. Bd3 {[%clk 0:02:59.7]} 5...
Bxd3 {[%clk 0:02:55.8]} 6. Qxd3 {[%clk 0:03:00.6]} 6... e6 {[%clk 0:02:55.4]} 7.
Nf3 {[%clk 0:03:00.6]} 7... Qa5+ {[%clk 0:02:53.5]} 8. Nbd2 {[%clk 0:03:00.9]}
8... Qa6 {[%clk 0:02:52.9]} 9. c4 {[%clk 0:03:00.8]} 9... Nh6 {[%clk 0:02:52]}
10. b3 {[%clk 0:03:00.7]} 10... Nf5 {[%clk 0:02:51.5]} 11. O-O {[%clk
0:03:01.3]} 11... Be7 {[%clk 0:02:50.6]} 12. Rd1 {[%clk 0:03:01]} 12... O-O
{[%clk 0:02:46.7]} 13. Nf1 {[%clk 0:02:59.8]} 13... Rd8 {[%clk 0:02:12]} 14. Ng3
{[%clk 0:02:47.1]} 14... dxc4 {[%clk 0:01:57.4]} 15. bxc4 {[%clk 0:02:43.7]}
15... Nxg3 {[%clk 0:01:17.6]} 16. fxg3 {[%clk 0:02:41.5]} 16... Nd7 {[%clk
0:01:17.8]} 17. Bg5 {[%clk 0:02:35.8]} 17... Bxg5 {[%clk 0:00:46.4]} 18. Nxg5
{[%clk 0:02:36.7]} 18... g6 {[%clk 0:00:46.1]} 19. Rf1 {[%clk 0:02:25.1]} 19...
Nxe5 {[%clk 0:00:43.7]} 20. Qe4 {[%clk 0:02:23.6]} 20... Qxc4 {[%clk 0:00:02.1]}
21. dxe5 {[%clk 0:02:12.9]} 1-0

[Event "Early-Titled-Tuesday-Blitz-February-06-2024"]
[Site "Chess.com"]
[Date "2024.02.06"]
[Round "2"]
[White "cukricek"]
[Black "Attacker_2006"]
[Result "1-0"]
[WhiteElo "2319"]
[BlackElo "2491"]
[TimeControl "180+1"]
[EndTime "8:15:12 PST"]
[Termination "cukricek won by resignation"]

1. g3 {[%clk 0:03:00.9]} 1... d5 {[%clk 0:02:55.2]} 2. Nf3 {[%clk 0:03:00.4]}
2... c5 {[%clk 0:02:50.8]} 3. Bg2 {[%clk 0:03:00.6]} 3... Nc6 {[%clk 0:02:47.9]}
4. d4 {[%clk 0:03:00.9]} 4... e6 {[%clk 0:02:46.1]} 5. O-O {[%clk 0:03:00.5]}
5... Nf6 {[%clk 0:02:45.2]} 6. c4 {[%clk 0:03:00.9]} 6... g6 {[%clk 0:02:43.7]}
7. cxd5 {[%clk 0:02:58.2]} 7... exd5 {[%clk 0:02:43.5]} 8. Nc3 {[%clk
0:02:58.5]} 8... Be6 {[%clk 0:02:41.3]} 9. Bg5 {[%clk 0:02:56.2]} 9... Bg7
{[%clk 0:02:38]} 10. dxc5 {[%clk 0:02:50.2]} 10... O-O {[%clk 0:02:37.2]} 11.
Nd4 {[%clk 0:02:40.5]} 11... Qa5 {[%clk 0:02:27.6]} 12. Nxe6 {[%clk 0:02:16.9]}
12... fxe6 {[%clk 0:02:26.5]} 13. Rc1 {[%clk 0:02:17]} 13... Rac8 {[%clk
0:02:24.4]} 14. Bh3 {[%clk 0:02:00.9]} 14... Rfe8 {[%clk 0:02:19.2]} 15. Bxf6
{[%clk 0:01:29.8]} 15... Bxf6 {[%clk 0:02:18.5]} 16. Nxd5 {[%clk 0:01:30.3]}
16... Bxb2 {[%clk 0:02:03]} 17. Rb1 {[%clk 0:01:17.1]} 17... Qxa2 {[%clk
0:01:56.5]} 18. Nf4 {[%clk 0:01:05.3]} 18... Bg7 {[%clk 0:01:47.6]} 19. Rxb7
{[%clk 0:01:05.1]} 19... Rcd8 {[%clk 0:01:41.5]} 20. Rd7 {[%clk 0:01:01]} 20...
e5 {[%clk 0:01:38.6]} 21. Be6+ {[%clk 0:00:49.9]} 21... Kh8 {[%clk 0:01:35.3]}
22. Bxa2 {[%clk 0:00:49.2]} 1-0

[Event "Early-Titled-Tuesday-Blitz-February-06-2024"]
[Site "Chess.com"]
[Date "2024.02.06"]
[Round "2"]
[White "Msb2"]
[Black "EmirhanTarlabasi"]
[Result "1-0"]
[WhiteElo "3006"]
[BlackElo "2643"]
[TimeControl "180+1"]
[EndTime "8:15:15 PST"]
[Termination "Msb2 won by resignation"]

1. d4 {[%clk 0:03:00.9]} 1... d5 {[%clk 0:02:59.3]} 2. c4 {[%clk 0:03:01.4]}
2... e6 {[%clk 0:02:59.4]} 3. Nc3 {[%clk 0:03:01.8]} 3... c5 {[%clk 0:02:59.7]}
4. cxd5 {[%clk 0:03:01.1]} 4... exd5 {[%clk 0:03:00.2]} 5. Nf3 {[%clk
0:03:01.1]} 5... Nc6 {[%clk 0:02:58.7]} 6. g3 {[%clk 0:02:58.4]} 6... Nf6 {[%clk
0:02:57.1]} 7. Be3 {[%clk 0:02:58.7]} 7... c4 {[%clk 0:02:53.7]} 8. Bg5 {[%clk
0:02:58.6]} 8... Be6 {[%clk 0:02:52.3]} 9. Bg2 {[%clk 0:02:58.4]} 9... Be7
{[%clk 0:02:50.8]} 10. e3 {[%clk 0:02:58.6]} 10... O-O {[%clk 0:02:50.4]} 11.
Bxf6 {[%clk 0:02:58.7]} 11... Bxf6 {[%clk 0:02:50]} 12. Ng1 {[%clk 0:02:59.4]}
12... b5 {[%clk 0:02:45.4]} 13. Nxb5 {[%clk 0:02:47.3]} 13... Rb8 {[%clk
0:02:42.9]} 14. Nc3 {[%clk 0:02:47.3]} 14... Rxb2 {[%clk 0:02:33.2]} 15. Nge2
{[%clk 0:02:47.5]} 15... Qa5 {[%clk 0:02:28.3]} 16. O-O {[%clk 0:02:47.3]} 16...
Rfb8 {[%clk 0:02:27.4]} 17. Qc1 {[%clk 0:02:37.1]} 17... Be7 {[%clk 0:02:22.6]}
18. Nf4 {[%clk 0:02:30.5]} 18... Ba3 {[%clk 0:02:14.4]} 19. Ncxd5 {[%clk
0:02:16.1]} 19... Rxf2 {[%clk 0:01:21.5]} 20. Qxc4 {[%clk 0:02:14.6]} 20...
Rxf1+ {[%clk 0:01:12.5]} 21. Rxf1 {[%clk 0:02:15.5]} 21... Nd8 {[%clk
0:00:50.1]} 22. Nxe6 {[%clk 0:02:07.8]} 22... Nxe6 {[%clk 0:00:48.7]} 23. Qc2
{[%clk 0:01:40.1]} 23... h6 {[%clk 0:00:43.9]} 24. Qf5 {[%clk 0:01:36.8]} 24...
Rf8 {[%clk 0:00:36.8]} 25. Nf6+ {[%clk 0:01:36.2]} 1-0

[Event "Early-Titled-Tuesday-Blitz-February-06-2024"]
[Site "Chess.com"]
[Date "2024.02.06"]
[Round "2"]
[White "deepfear"]
[Black "ExchangeAB"]
[Result "0-1"]
[WhiteElo "1962"]
[BlackElo "2412"]
[TimeControl "180+1"]
[EndTime "8:15:16 PST"]
[Termination "ExchangeAB won by resignation"]

1. e4 {[%clk 0:02:59.3]} 1... c6 {[%clk 0:02:59.8]} 2. d4 {[%clk 0:02:58.6]}
2... d5 {[%clk 0:03:00.7]} 3. exd5 {[%clk 0:02:59.1]} 3... cxd5 {[%clk
0:03:00.7]} 4. Bd3 {[%clk 0:02:59.5]} 4... Nf6 {[%clk 0:03:01.2]} 5. c3 {[%clk
0:02:59.6]} 5... Nc6 {[%clk 0:03:01.2]} 6. Bf4 {[%clk 0:02:58.6]} 6... Bg4
{[%clk 0:03:01.2]} 7. Qb3 {[%clk 0:02:58.4]} 7... Qd7 {[%clk 0:03:01.4]} 8. Nd2
{[%clk 0:02:56.8]} 8... e6 {[%clk 0:03:00.7]} 9. Ngf3 {[%clk 0:02:57.1]} 9...
Bd6 {[%clk 0:03:01.3]} 10. Bxd6 {[%clk 0:02:48.3]} 10... Qxd6 {[%clk 0:03:00.7]}
11. O-O {[%clk 0:02:24.9]} 11... Qc7 {[%clk 0:02:53.1]} 12. h3 {[%clk
0:02:23.8]} 12... Bh5 {[%clk 0:02:52.5]} 13. Rfe1 {[%clk 0:02:23.6]} 13... O-O
{[%clk 0:02:51.7]} 14. Ne5 {[%clk 0:02:22.1]} 14... Nxe5 {[%clk 0:02:47.7]} 15.
Rxe5 {[%clk 0:02:17.2]} 15... Bg6 {[%clk 0:02:46.8]} 16. Bxg6 {[%clk 0:02:14.3]}
16... hxg6 {[%clk 0:02:47.7]} 17. Nf3 {[%clk 0:02:00]} 17... Rab8 {[%clk
0:02:44.9]} 18. Rae1 {[%clk 0:01:46.6]} 18... b5 {[%clk 0:02:42.8]} 19. a3
{[%clk 0:01:46.4]} 19... a5 {[%clk 0:02:42.6]} 20. g4 {[%clk 0:01:20.2]} 20...
Ne4 {[%clk 0:02:35.2]} 21. Ng5 {[%clk 0:00:58.1]} 21... Nxg5 {[%clk 0:02:28.1]}
22. Rxg5 {[%clk 0:00:57.9]} 22... Qc4 {[%clk 0:02:15]} 23. Qd1 {[%clk
0:00:44.6]} 23... b4 {[%clk 0:02:10.5]} 24. axb4 {[%clk 0:00:42.1]} 24... axb4
{[%clk 0:02:10.5]} 25. Qd2 {[%clk 0:00:20.7]} 25... Rfc8 {[%clk 0:02:07.5]} 26.
Rc1 {[%clk 0:00:19.9]} 26... Qb3 {[%clk 0:02:01.3]} 27. Rf5 {[%clk 0:00:16.5]}
27... gxf5 {[%clk 0:02:00.1]} 0-1

[Event "Early-Titled-Tuesday-Blitz-February-06-2024"]
[Site "Chess.com"]
[Date "2024.02.06"]
[Round "2"]
[White "mjray79"]
[Black "MasterKroket"]
[Result "1-0"]
[WhiteElo "2721"]
[BlackElo "2482"]
[TimeControl "180+1"]
[EndTime "8:15:17 PST"]
[Termination "mjray79 won by resignation"]

1. e4 {[%clk 0:03:00.9]} 1... e5 {[%clk 0:02:57.6]} 2. Nf3 {[%clk 0:02:59.8]}
2... Nc6 {[%clk 0:02:58]} 3. Bb5 {[%clk 0:02:59.8]} 3... a6 {[%clk 0:02:57.5]}
4. Ba4 {[%clk 0:02:59.7]} 4... Nf6 {[%clk 0:02:57.9]} 5. O-O {[%clk 0:02:59.1]}
5... Be7 {[%clk 0:02:58.1]} 6. Re1 {[%clk 0:02:59]} 6... b5 {[%clk 0:02:58.5]}
7. Bb3 {[%clk 0:02:58.8]} 7... O-O {[%clk 0:02:59.2]} 8. a4 {[%clk 0:02:56.1]}
8... b4 {[%clk 0:02:58.9]} 9. d3 {[%clk 0:02:52.4]} 9... d6 {[%clk 0:02:54.7]}
10. a5 {[%clk 0:02:46.6]} 10... Nd7 {[%clk 0:02:52.4]} 11. Be3 {[%clk
0:02:36.9]} 11... Nc5 {[%clk 0:02:49.7]} 12. Bd5 {[%clk 0:02:37]} 12... Bb7
{[%clk 0:02:43.9]} 13. Nbd2 {[%clk 0:02:28.1]} 13... Kh8 {[%clk 0:02:26.6]} 14.
Bxc5 {[%clk 0:02:19.2]} 14... dxc5 {[%clk 0:02:26.7]} 15. Nxe5 {[%clk
0:02:17.1]} 15... Nxe5 {[%clk 0:02:09.5]} 16. Bxb7 {[%clk 0:02:17.3]} 16... Rb8
{[%clk 0:02:09.3]} 17. Bxa6 {[%clk 0:02:13.4]} 17... Bf6 {[%clk 0:02:09.5]} 18.
Bc4 {[%clk 0:02:05]} 18... Ra8 {[%clk 0:01:54.2]} 19. Bd5 {[%clk 0:01:56.1]}
19... Ra7 {[%clk 0:01:51.4]} 20. Ra2 {[%clk 0:01:52.1]} 20... c6 {[%clk
0:01:47.6]} 21. Bb3 {[%clk 0:01:47.5]} 21... Rxa5 {[%clk 0:01:47.8]} 22. Qa1
{[%clk 0:01:47.7]} 22... Rxa2 {[%clk 0:01:46.7]} 23. Qxa2 {[%clk 0:01:48.6]}
23... Bg5 {[%clk 0:01:39.5]} 24. Nc4 {[%clk 0:01:45.6]} 24... Nxc4 {[%clk
0:01:39.3]} 25. Bxc4 {[%clk 0:01:46.5]} 25... Bf6 {[%clk 0:01:37]} 26. Bxf7
{[%clk 0:01:39.4]} 26... Bd4 {[%clk 0:01:36]} 27. e5 {[%clk 0:01:14.4]} 27...
Qg5 {[%clk 0:01:17.4]} 28. e6 {[%clk 0:01:09.2]} 28... h5 {[%clk 0:01:15.5]} 29.
e7 {[%clk 0:01:06.2]} 1-0

[Event "Early-Titled-Tuesday-Blitz-February-06-2024"]
[Site "Chess.com"]
[Date "2024.02.06"]
[Round "2"]
[White "Irishchessman16"]
[Black "cristiano78"]
[Result "1-0"]
[WhiteElo "2495"]
[BlackElo "2268"]
[TimeControl "180+1"]
[EndTime "8:15:17 PST"]
[Termination "Irishchessman16 won by checkmate"]

1. d4 {[%clk 0:03:00.9]} 1... Nf6 {[%clk 0:02:59.2]} 2. Bg5 {[%clk 0:03:01.2]}
2... c5 {[%clk 0:02:58.9]} 3. Nc3 {[%clk 0:03:01]} 3... cxd4 {[%clk 0:02:58.7]}
4. Qxd4 {[%clk 0:03:00.9]} 4... Nc6 {[%clk 0:02:58.9]} 5. Qh4 {[%clk 0:03:00.9]}
5... e6 {[%clk 0:02:57]} 6. O-O-O {[%clk 0:02:59.3]} 6... Be7 {[%clk 0:02:56.8]}
7. e4 {[%clk 0:02:59]} 7... h6 {[%clk 0:02:56.7]} 8. f4 {[%clk 0:02:57.3]} 8...
a6 {[%clk 0:02:46.4]} 9. e5 {[%clk 0:02:38.9]} 9... Ng8 {[%clk 0:02:36.2]} 10.
Nf3 {[%clk 0:02:28.6]} 10... f6 {[%clk 0:02:31.1]} 11. Qh5+ {[%clk 0:02:15.1]}
11... Kf8 {[%clk 0:02:30.9]} 12. Bh4 {[%clk 0:02:13.4]} 12... Qe8 {[%clk
0:02:29.3]} 13. Qxe8+ {[%clk 0:02:04.1]} 13... Kxe8 {[%clk 0:02:28.8]} 14. Ne4
{[%clk 0:02:01.8]} 14... g5 {[%clk 0:02:21.8]} 15. exf6 {[%clk 0:01:55.6]} 15...
gxh4 {[%clk 0:02:18.9]} 16. fxe7 {[%clk 0:01:53.3]} 16... Ngxe7 {[%clk
0:02:16.4]} 17. Nd6+ {[%clk 0:01:49.2]} 17... Kf8 {[%clk 0:02:16.5]} 18. Nxh4
{[%clk 0:01:46.5]} 18... Kg7 {[%clk 0:02:12.9]} 19. Be2 {[%clk 0:01:35.5]} 19...
Rf8 {[%clk 0:02:12.7]} 20. Rhf1 {[%clk 0:01:33.6]} 20... Nd5 {[%clk 0:02:05.3]}
21. Rd3 {[%clk 0:01:04.4]} 21... Rxf4 {[%clk 0:01:57.6]} 22. Rg3+ {[%clk
0:01:02.4]} 22... Kf6 {[%clk 0:01:49.6]} 23. Rxf4+ {[%clk 0:00:47.4]} 23... Nxf4
{[%clk 0:01:48.8]} 24. Rf3 {[%clk 0:00:47.6]} 24... Kg5 {[%clk 0:01:37.3]} 25.
Ne4+ {[%clk 0:00:42.6]} 25... Kxh4 {[%clk 0:01:26.5]} 26. Rxf4# {[%clk
0:00:41.3]} 1-0

[Event "Early-Titled-Tuesday-Blitz-February-06-2024"]
[Site "Chess.com"]
[Date "2024.02.06"]
[Round "2"]
[White "AryanTari"]
[Black "Yeritsyaan"]
[Result "1-0"]
[WhiteElo "2952"]
[BlackElo "2628"]
[TimeControl "180+1"]
[EndTime "8:15:22 PST"]
[Termination "AryanTari won by checkmate"]

1. e4 {[%clk 0:03:00.9]} 1... e5 {[%clk 0:02:57.1]} 2. Nf3 {[%clk 0:03:00.5]}
2... Nc6 {[%clk 0:02:57.3]} 3. d4 {[%clk 0:03:00.8]} 3... exd4 {[%clk
0:02:56.7]} 4. Nxd4 {[%clk 0:03:01.7]} 4... Nf6 {[%clk 0:02:56.7]} 5. Nxc6
{[%clk 0:03:01.9]} 5... bxc6 {[%clk 0:02:56.2]} 6. Nd2 {[%clk 0:03:02.6]} 6...
d5 {[%clk 0:02:53.2]} 7. exd5 {[%clk 0:03:02.9]} 7... cxd5 {[%clk 0:02:51.6]} 8.
Bb5+ {[%clk 0:03:03.1]} 8... Bd7 {[%clk 0:02:51.5]} 9. Bxd7+ {[%clk 0:03:03.3]}
9... Qxd7 {[%clk 0:02:52.4]} 10. O-O {[%clk 0:03:03.1]} 10... Be7 {[%clk
0:02:49.5]} 11. b3 {[%clk 0:03:03.4]} 11... O-O {[%clk 0:02:46.7]} 12. Bb2
{[%clk 0:03:04]} 12... Rfe8 {[%clk 0:02:34]} 13. Qf3 {[%clk 0:02:57.2]} 13...
Qg4 {[%clk 0:02:14.2]} 14. Rad1 {[%clk 0:02:52.3]} 14... Qxf3 {[%clk 0:02:12.9]}
15. Nxf3 {[%clk 0:02:53.2]} 15... c6 {[%clk 0:02:03.3]} 16. Nd4 {[%clk
0:02:52.8]} 16... Rac8 {[%clk 0:02:02.2]} 17. Nf5 {[%clk 0:02:52.8]} 17... Rcd8
{[%clk 0:01:40.5]} 18. Rd3 {[%clk 0:02:29.2]} 18... Bb4 {[%clk 0:00:45]} 19.
Nxg7 {[%clk 0:02:16.8]} 19... Kxg7 {[%clk 0:00:42.6]} 20. Rg3+ {[%clk
0:02:16.9]} 20... Kh6 {[%clk 0:00:23]} 21. Bxf6 {[%clk 0:02:17.8]} 21... Rd6
{[%clk 0:00:21.5]} 22. Bg5+ {[%clk 0:02:17.7]} 22... Kh5 {[%clk 0:00:21.3]} 23.
Be3 {[%clk 0:02:04.9]} 23... f6 {[%clk 0:00:15.6]} 24. Rg7 {[%clk 0:02:02.6]}
24... d4 {[%clk 0:00:12.8]} 25. Bf4 {[%clk 0:02:01.1]} 25... Rde6 {[%clk
0:00:10.8]} 26. g4+ {[%clk 0:02:00.4]} 26... Kh4 {[%clk 0:00:07.5]} 27. Kg2
{[%clk 0:02:00.8]} 27... h5 {[%clk 0:00:06.8]} 28. Bg3# {[%clk 0:02:01]} 1-0

[Event "Early-Titled-Tuesday-Blitz-February-06-2024"]
[Site "Chess.com"]
[Date "2024.02.06"]
[Round "2"]
[White "vovachesss"]
[Black "Kapitan_Bayan"]
[Result "1-0"]
[WhiteElo "2830"]
[BlackElo "2388"]
[TimeControl "180+1"]
[EndTime "8:15:23 PST"]
[Termination "vovachesss won by checkmate"]

1. e4 {[%clk 0:03:00.9]} 1... c5 {[%clk 0:02:48.4]} 2. c3 {[%clk 0:03:00.1]}
2... d6 {[%clk 0:02:42.1]} 3. d4 {[%clk 0:02:59.9]} 3... cxd4 {[%clk 0:02:32.4]}
4. cxd4 {[%clk 0:03:00.8]} 4... Nf6 {[%clk 0:02:31.9]} 5. Nc3 {[%clk 0:03:01.4]}
5... a6 {[%clk 0:02:30.7]} 6. Nf3 {[%clk 0:02:55.6]} 6... Bg4 {[%clk 0:02:26.9]}
7. Bc4 {[%clk 0:02:49.5]} 7... b5 {[%clk 0:02:23.1]} 8. Bb3 {[%clk 0:02:42]}
8... Nc6 {[%clk 0:02:18]} 9. Be3 {[%clk 0:02:18.9]} 9... Qa5 {[%clk 0:01:54.3]}
10. O-O {[%clk 0:02:15.8]} 10... e6 {[%clk 0:01:41.5]} 11. h3 {[%clk 0:02:07.9]}
11... Bh5 {[%clk 0:01:36.5]} 12. d5 {[%clk 0:02:04.3]} 12... Ne5 {[%clk
0:01:32.2]} 13. dxe6 {[%clk 0:02:01.8]} 13... Nxf3+ {[%clk 0:01:19.4]} 14. gxf3
{[%clk 0:02:02.7]} 14... fxe6 {[%clk 0:01:14.5]} 15. Bxe6 {[%clk 0:02:03.6]}
15... b4 {[%clk 0:01:10.7]} 16. Nd5 {[%clk 0:02:02]} 16... Nxd5 {[%clk
0:01:06.1]} 17. Bxd5 {[%clk 0:01:42]} 17... Rc8 {[%clk 0:01:04.7]} 18. Rc1
{[%clk 0:01:36.6]} 18... Rc7 {[%clk 0:00:41.3]} 19. Rxc7 {[%clk 0:01:18.4]}
19... Qxc7 {[%clk 0:00:40]} 20. Qa4+ {[%clk 0:01:19.1]} 20... Ke7 {[%clk
0:00:33.7]} 21. Bg5# {[%clk 0:01:18.9]} 1-0

[Event "Early-Titled-Tuesday-Blitz-February-06-2024"]
[Site "Chess.com"]
[Date "2024.02.06"]
[Round "2"]
[White "AlexPapasimakopoulos"]
[Black "ri4mi"]
[Result "1-0"]
[WhiteElo "2759"]
[BlackElo "2544"]
[TimeControl "180+1"]
[EndTime "8:15:25 PST"]
[Termination "AlexPapasimakopoulos won by resignation"]

1. d4 {[%clk 0:03:00.9]} 1... d5 {[%clk 0:02:49.5]} 2. c4 {[%clk 0:03:00.1]}
2... e6 {[%clk 0:02:47.1]} 3. Nc3 {[%clk 0:03:00.2]} 3... c6 {[%clk 0:02:47.3]}
4. e3 {[%clk 0:02:58.9]} 4... f5 {[%clk 0:02:47.2]} 5. g4 {[%clk 0:02:58.1]}
5... fxg4 {[%clk 0:02:44.7]} 6. Qxg4 {[%clk 0:02:57.5]} 6... Nf6 {[%clk
0:02:44.7]} 7. Qg2 {[%clk 0:02:57.6]} 7... b6 {[%clk 0:02:29.7]} 8. Nf3 {[%clk
0:02:57.2]} 8... Nbd7 {[%clk 0:02:27.6]} 9. Bd2 {[%clk 0:02:56.8]} 9... Bb7
{[%clk 0:02:27.6]} 10. Ne5 {[%clk 0:02:54.8]} 10... Nxe5 {[%clk 0:02:24.4]} 11.
dxe5 {[%clk 0:02:55.7]} 11... Nd7 {[%clk 0:02:24.9]} 12. cxd5 {[%clk 0:02:53.5]}
12... cxd5 {[%clk 0:02:22.1]} 13. f4 {[%clk 0:02:51.1]} 13... Qh4+ {[%clk
0:02:18.5]} 14. Qg3 {[%clk 0:02:51.4]} 14... Be7 {[%clk 0:02:17]} 15. Bg2 {[%clk
0:02:44.9]} 15... Qh6 {[%clk 0:02:13.4]} 16. O-O {[%clk 0:02:40.2]} 16... g6
{[%clk 0:02:04.9]} 17. Nb5 {[%clk 0:02:37.9]} 17... Rc8 {[%clk 0:01:32.1]} 18.
Nd4 {[%clk 0:02:34.8]} 18... Bh4 {[%clk 0:01:13.4]} 19. Qg4 {[%clk 0:02:29.7]}
19... Nc5 {[%clk 0:00:59]} 20. Nxe6 {[%clk 0:02:19.6]} 20... Be7 {[%clk
0:00:52.5]} 21. Rac1 {[%clk 0:02:15.6]} 21... a5 {[%clk 0:00:40.7]} 22. a3
{[%clk 0:02:11.4]} 22... Kf7 {[%clk 0:00:22.3]} 23. Ng5+ {[%clk 0:02:06.7]}
23... Kg7 {[%clk 0:00:18.2]} 24. b4 {[%clk 0:02:06.7]} 24... axb4 {[%clk
0:00:13.2]} 25. axb4 {[%clk 0:02:06.5]} 25... Ne4 {[%clk 0:00:10.3]} 26. Bxe4
{[%clk 0:02:04.8]} 26... dxe4 {[%clk 0:00:10.3]} 27. Qd7 {[%clk 0:02:04.5]} 1-0